fUST/lending_fUST_20250908
["ID","MTS","AMOUNT","RATE_DAILY","PERIOD"]
[384287727,1757315438322,-500.0,0.00013767,2]
[384287728,1757315438331,-500.0,0.00013767,2]
[384287729,1757315438341,-500.0,0.00013767,2]
[384287730,1757315438350,-500.0,0.00013767,2]
[384287731,1757315438359,-500.0,0.00013767,2]
[384287732,1757315438369,-500.0,0.00013767,2]
[384287733,1757315438379,-500.0,0.00013767,2]
[384287734,1757315438388,-500.0,0.00013767,2]
[384287735,1757315438397,-500.0,0.00013767,2]
[384287736,1757315438407,-500.0,0.00013767,2]
[384287737,1757315438416,-500.0,0.00013767,2]
[384287738,1757315438425,-15.22704378,0.00013767,2]
[384287739,1757315438467,-484.77295622,0.00013767,2]
[384287740,1757315438477,-500.0,0.00013767,2]
[384287741,1757315438486,-500.0,0.00013767,2]
[384287742,1757315438495,-457.70800933,0.00013767,2]
[384287743,1757315438504,-500.0,0.00013767,2]
[384287744,1757315438513,-500.0,0.00013767,2]
[384287745,1757315438522,-500.0,0.00013767,2]
[384287746,1757315438531,-500.0,0.00013767,2]
[384287747,1757315438540,-500.0,0.00013767,2]
[384287748,1757315438550,-500.0,0.00013767,2]
[384287749,1757315438560,-558.21231843,0.00013767,2]
[384287750,1757315438569,-500.0,0.00013767,2]
[384287751,1757315438578,-500.0,0.00013767,2]
[384287752,1757315438587,-500.0,0.00013767,2]
[384287753,1757315438597,-500.0,0.00013767,2]
[384287754,1757315438607,-275.17523818,0.00013767,2]
[384287755,1757315438617,-500.0,0.00013767,2]
[384287756,1757315438626,-500.0,0.00013767,2]
[384287757,1757315438635,-287.27180758,0.00013767,2]
[384287758,1757315438645,-500.0,0.00013767,2]
[384287759,1757315438654,-500.0,0.00013767,2]
[384287760,1757315438664,-500.0,0.00013767,2]
[384287761,1757315438674,-211.73710472,0.00013767,2]
[384287762,1757315438682,-263.84582583,0.00013767,2]
[384287763,1757315438692,-500.0,0.00013767,2]
[384287764,1757315438702,-500.0,0.00013767,2]
[384287765,1757315438711,-500.0,0.00013767,2]
[384287766,1757315438721,-500.0,0.00013767,2]
[384287767,1757315438730,-500.0,0.00013767,2]
[384287768,1757315438739,-500.0,0.00013767,2]
[384287769,1757315438748,-500.0,0.00013767,2]
[384287770,1757315438757,-333.21009668,0.00013767,2]
[384287771,1757315438766,-500.0,0.00013767,2]
[384287772,1757315438775,-500.0,0.00013767,2]
[384287773,1757315438916,-500.0,0.00013767,2]
[384287774,1757315438927,-500.0,0.00013767,2]
[384287775,1757315438937,-500.0,0.00013767,2]
[384287776,1757315438946,-500.0,0.00013767,2]
[384287777,1757315438956,-500.0,0.00013767,2]
[384287778,1757315438965,-500.0,0.00013767,2]
[384287779,1757315438975,-500.0,0.00013767,2]
[384287780,1757315438984,-500.0,0.00013767,2]
[384287781,1757315438993,-500.0,0.00013767,2]
[384287782,1757315439005,-500.0,0.00013767,2]
[384287783,1757315439015,-500.0,0.00013767,2]
[384287784,1757315439025,-500.0,0.00013767,2]
[384287785,1757315439035,-502.18046612,0.00013767,2]
[384287786,1757315439047,-500.0,0.00013767,2]
[384287787,1757315439056,-500.0,0.00013767,2]
[384287788,1757315439066,-500.0,0.00013767,2]
[384287789,1757315439076,-500.0,0.00013767,2]
[384287790,1757315439087,-500.0,0.00013767,2]
[384287791,1757315439097,-500.0,0.00013767,2]
[384287792,1757315439107,-449.25949012,0.00013767,2]
[384287793,1757315439116,-500.0,0.00013767,2]
[384287794,1757315439127,-500.0,0.00013767,2]
[384287795,1757315439137,-499.99999999,0.00013767,2]
[384287796,1757315439146,-480.0,0.00013767,2]
[384287797,1757315439156,-480.0,0.00013767,2]
[384287798,1757315439166,-480.0,0.00013768,2]
[384287799,1757315439176,-480.0,0.00013768,2]
[384287800,1757315439185,-480.0,0.00013768,2]
[384287801,1757315439194,-480.0,0.00013768,2]
[384287802,1757315439204,-487.48641326,0.00013768,2]
[384287803,1757315439214,-482.19374773,0.00013768,2]
[384287804,1757315439224,-510.99289691,0.00013768,2]
[384287805,1757315439233,-480.0,0.00013768,2]
[384287806,1757315439243,-480.0,0.00013768,2]
[384287807,1757315439252,-480.0,0.00013768,2]
[384287808,1757315439261,-480.0,0.00013768,2]
[384287809,1757315439272,-480.0,0.00013768,2]
[384287810,1757315439283,-480.0,0.00013768,2]
[384287811,1757315439295,-480.0,0.00013768,2]
[384287812,1757315439305,-480.0,0.00013768,2]
[384287813,1757315439315,-480.0,0.00013768,2]
[384287814,1757315439325,-209.56594064,0.00013768,2]
[384287815,1757315439336,-291.53,0.00013768,2]
[384287816,1757315439347,-480.0,0.00013768,2]
[384287817,1757315439357,-480.0,0.00013768,2]
[384287818,1757315439368,-480.0,0.00013768,2]
[384287819,1757315439378,-480.0,0.00013768,2]
[384287820,1757315439387,-480.0,0.00013768,2]
[384287821,1757315439397,-480.0,0.00013768,2]
[384287822,1757315439406,-480.0,0.00013768,2]
[384287823,1757315439416,-480.0,0.00013768,2]
[384287824,1757315439425,-171.87259867,0.00013768,2]
[384287825,1757315439434,-372.37620143,0.00013768,2]
[384287826,1757315439443,-480.0,0.00013768,2]
[384287827,1757315439452,-50.11145274,0.00013768,2]
[384287843,1757315440200,-429.88854726,0.00013768,2]
[384287845,1757315440210,-480.0,0.00013768,2]
[384287848,1757315440220,-480.0,0.00013768,2]
[384287849,1757315440229,-480.0,0.00013768,2]
[384287851,1757315440239,-480.0,0.00013768,2]
[384287853,1757315440249,-480.0,0.00013768,2]
[384287855,1757315440258,-480.0,0.00013768,2]
[384287857,1757315440269,-480.0,0.00013768,2]
[384287860,1757315440278,-480.0,0.00013768,2]
[384287862,1757315440287,-1040.33,0.00013768,2]
[384287864,1757315440297,-480.0,0.00013768,2]
[384287866,1757315440306,-480.0,0.00013768,2]
[384287868,1757315440316,-527.32,0.00013768,2]
[384287869,1757315440325,-232.20312096,0.00013768,2]
[384287871,1757315440335,-480.0,0.00013768,2]
[384287873,1757315440344,-482.14953305,0.00013768,2]
[384287875,1757315440353,-480.0,0.00013768,2]
[384287877,1757315440363,-480.0,0.00013768,2]
[384287878,1757315440372,-480.0,0.00013768,2]
[384287879,1757315440381,-480.0,0.00013768,2]
[384287880,1757315440390,-480.0,0.00013768,2]
[384287881,1757315440399,-480.0,0.00013768,2]
[384287882,1757315440408,-480.0,0.00013768,2]
[384287883,1757315440417,-480.0,0.00013768,2]
[384287884,1757315440426,-480.0,0.00013768,2]
[384287885,1757315440435,-480.0,0.00013768,2]
[384287886,1757315440444,-491.18,0.00013768,2]
[384287887,1757315440453,-480.0,0.00013768,2]
[384287888,1757315440463,-622.93415007,0.00013768,2]
[384287889,1757315440471,-480.0,0.00013768,2]
[384287890,1757315440480,-500.0,0.00013768,2]
[384287891,1757315440489,-500.0,0.00013768,2]
[384287892,1757315440498,-500.0,0.00013768,2]
[384287893,1757315440508,-500.0,0.00013768,2]
[384287894,1757315440517,-500.0,0.00013768,2]
[384287895,1757315440526,-480.0,0.00013768,2]
[384287896,1757315440535,-480.0,0.00013768,2]
[384287897,1757315440544,-588.58,0.00013768,2]
[384287898,1757315440553,-480.0,0.00013768,2]
[384287899,1757315440564,-576.41,0.00013768,2]
[384287900,1757315440573,-480.0,0.00013768,2]
[384287901,1757315440582,-480.0,0.00013768,2]
[384287902,1757315440591,-480.0,0.00013768,2]
[384287903,1757315440600,-480.0,0.00013768,2]
[384287904,1757315440610,-157.0,0.00013768,2]
[384287905,1757315440620,-296.71166127,0.00013768,2]
[384287906,1757315440629,-172.76631583,0.00013768,2]
[384287907,1757315440638,-157.0,0.00013768,2]
[384287908,1757315440647,-500.0,0.00013768,2]
[384287909,1757315440656,-483.0,0.00013768,2]
[384287910,1757315440665,-297.84851912,0.00013768,2]
[384287911,1757315440674,-157.0,0.00013768,2]
[384287912,1757315440683,-500.0,0.00013768,2]
[384287913,1757315440691,-500.0,0.00013768,2]
[384287914,1757315440701,-157.0,0.00013768,2]
[384287915,1757315440709,-157.0,0.00013768,2]
[384287916,1757315440719,-500.0,0.00013768,2]
[384287917,1757315440728,-480.0,0.00013768,2]
[384287918,1757315440737,-157.0,0.00013768,2]
[384287919,1757315440746,-480.0,0.00013768,2]
[384287920,1757315440755,-480.0,0.00013768,2]
[384287922,1757315440765,-3364.48,0.00013768,2]
[384287924,1757315440774,-480.0,0.00013768,2]
[384287926,1757315440784,-480.0,0.00013768,2]
[384287928,1757315440793,-250.06181351,0.00013768,2]
[384287930,1757315440803,-565.53,0.00013768,2]
[384287932,1757315440812,-480.0,0.00013768,2]
[384287934,1757315440821,-480.0,0.00013768,2]
[384287936,1757315440830,-920.01,0.00013768,2]
[384287938,1757315440840,-1545.38,0.00013768,2]
[384287940,1757315440849,-157.0,0.00013768,2]
[384287942,1757315440859,-157.0,0.00013768,2]
[384287943,1757315440868,-296.88981146,0.00013768,2]
[384287945,1757315440879,-157.0,0.00013768,2]
[384287947,1757315440888,-157.0,0.00013768,2]
[384287949,1757315440898,-157.0,0.00013768,2]
[384287951,1757315440907,-480.0,0.00013768,2]
[384287953,1757315440917,-480.0,0.00013768,2]
[384287955,1757315440926,-532.67,0.00013768,2]
[384287957,1757315440936,-480.0,0.00013768,2]
[384287959,1757315440945,-480.0,0.00013768,2]
[384287961,1757315440954,-174.24925022,0.00013768,2]
[384287963,1757315440964,-500.0,0.00013769,2]
[384287965,1757315440973,-480.0,0.00013769,2]
[384287967,1757315440982,-480.0,0.00013769,2]
[384287969,1757315440992,-480.0,0.00013769,2]
[384287971,1757315441002,-480.0,0.00013769,2]
[384287973,1757315441016,-480.0,0.00013769,2]
[384287975,1757315441025,-480.0,0.00013769,2]
[384287977,1757315441035,-480.0,0.00013769,2]
[384287979,1757315441044,-480.0,0.00013769,2]
[384287981,1757315441055,-484.37503894,0.00013769,2]
[384287983,1757315441064,-480.0,0.00013769,2]
[384287985,1757315441073,-480.0,0.00013769,2]
[384287987,1757315441085,-480.0,0.00013769,2]
[384287989,1757315441094,-482.08996497,0.00013769,2]
[384287991,1757315441103,-545.87579054,0.00013769,2]
[384287993,1757315441112,-480.0,0.00013769,2]
[384287995,1757315441122,-600.61115662,0.00013769,2]
[384287997,1757315441132,-480.0,0.00013769,2]
[384287999,1757315441142,-480.0,0.00013769,2]
[384288001,1757315441151,-480.0,0.00013769,2]
[384288003,1757315441160,-480.0,0.00013769,2]
[384288004,1757315441169,-386.49973187,0.00013769,2]
[384288006,1757315441178,-480.0,0.00013769,2]
[384288008,1757315441188,-480.0,0.00013769,2]
[384288010,1757315441197,-492.27639507,0.00013769,2]
[384288012,1757315441206,-480.0,0.00013769,2]
[384288014,1757315441215,-499.35467289,0.00013769,2]
[384288016,1757315441224,-480.0,0.00013769,2]
[384288018,1757315441234,-480.0,0.00013769,2]
[384288020,1757315441243,-480.0,0.00013769,2]
[384288022,1757315441256,-480.0,0.00013769,2]
[384288024,1757315441265,-7164.27,0.00013769,2]
[384288026,1757315441274,-480.0,0.00013769,2]
[384288028,1757315441283,-2139.81,0.00013769,2]
[384288030,1757315441292,-705.93,0.00013769,2]
[384288032,1757315441301,-579.93395962,0.00013769,2]
[384288034,1757315441311,-933.99,0.00013769,2]
[384288036,1757315441319,-151.0,0.00013769,2]
[384288038,1757315441328,-480.0,0.00013769,2]
[384288040,1757315441337,-151.0,0.00013769,2]
[384288042,1757315441346,-178.788015,0.00013769,2]
[384288044,1757315441355,-480.0,0.00013769,2]
[384288045,1757315441364,-151.0,0.00013769,2]
[384288047,1757315441375,-151.0,0.00013769,2]
[384288049,1757315441384,-151.0,0.00013769,2]
[384288051,1757315441394,-151.0,0.00013769,2]
[384288053,1757315441403,-1210.73,0.00013769,2]
[384288055,1757315441413,-708.85,0.00013769,2]
[384288057,1757315441422,-288.39596,0.00013769,2]
[384288059,1757315441431,-151.0,0.00013769,2]
[384288061,1757315441440,-151.0,0.00013769,2]
[384288063,1757315441450,-500.0,0.00013769,2]
[384288065,1757315441459,-288.39596,0.00013769,2]
[384288067,1757315441468,-288.39596,0.00013769,2]
[384288069,1757315441477,-288.39596,0.00013769,2]
[384288071,1757315441486,-151.0,0.00013769,2]
[384288073,1757315441495,-480.0,0.00013769,2]
[384288075,1757315441505,-283.394942,0.00013769,2]
[384288077,1757315441514,-283.394942,0.00013769,2]
[384288079,1757315441523,-283.394942,0.00013769,2]
[384288081,1757315441532,-283.394942,0.00013769,2]
[384288083,1757315441541,-494.85,0.00013769,2]
[384288084,1757315441551,-151.0,0.00013769,2]
[384288086,1757315441561,-151.0,0.00013769,2]
[384288088,1757315441570,-151.0,0.00013769,2]
[384288090,1757315441579,-151.0,0.00013769,2]
[384288092,1757315441588,-198.465905,0.00013769,2]
[384288094,1757315441598,-198.465905,0.00013769,2]
[384288096,1757315441607,-198.465905,0.00013769,2]
[384288098,1757315441616,-198.465905,0.00013769,2]
[384288100,1757315441626,-152.756444,0.00013769,2]
[384288102,1757315441635,-480.0,0.00013769,2]
[384288104,1757315441645,-157.0,0.00013769,2]
[384288106,1757315441654,-157.0,0.00013769,2]
[384288108,1757315441664,-151.0,0.00013769,2]
[384288110,1757315441673,-481.97245701,0.00013769,2]
[384288112,1757315441682,-151.0,0.00013769,2]
[384288114,1757315441691,-480.0,0.00013769,2]
[384288115,1757315441700,-151.0,0.00013769,2]
[384288117,1757315441709,-151.0,0.00013769,2]
[384288119,1757315441718,-151.0,0.00013769,2]
[384288121,1757315441728,-151.0,0.00013769,2]
[384288123,1757315441738,-151.0,0.00013769,2]
[384288125,1757315441747,-151.0,0.00013769,2]
[384288128,1757315441757,-480.0,0.00013769,2]
[384288129,1757315441766,-151.0,0.00013769,2]
[384288131,1757315441776,-151.0,0.00013769,2]
[384288133,1757315441786,-582.920251,0.00013769,2]
[384288135,1757315441795,-29705.57940762,0.0001377,2]
[384288137,1757315441805,-151.0,0.0001377,2]
[384288149,1757315441920,-151.0,0.0001377,2]
[384288151,1757315441930,-151.0,0.0001377,2]
[384288153,1757315441939,-151.0,0.0001377,2]
[384288155,1757315441949,-18.9167641,0.0001377,2]
[384288294,1757315443320,-996.98,0.00013766,2]
[384288296,1757315443331,-38.47871648,0.00013766,2]
[384288579,1757315446338,-466.87128352,0.00013766,2]
[384288581,1757315446346,-480.0,0.00013768,2]
[384288583,1757315446355,-582.920251,0.00013769,2]
[384288585,1757315446363,-582.920251,0.00013769,2]
[384288587,1757315446372,-521.30835113,0.00013769,2]
[384288589,1757315446383,-61.61189987,0.00013769,2]
[384288591,1757315446391,-132.0832359,0.0001377,2]
[384288593,1757315446400,-151.0,0.0001377,2]
[384288595,1757315446408,-152.410703,0.0001377,2]
[384288597,1757315446416,-151.0,0.0001377,2]
[384288599,1757315446425,-164.075677,0.0001377,2]
[384288600,1757315446434,-151.0,0.0001377,2]
[384288602,1757315446442,-151.0,0.0001377,2]
[384288604,1757315446451,-151.0,0.0001377,2]
[384288606,1757315446461,-151.0,0.0001377,2]
[384288608,1757315446470,-151.0,0.0001377,2]
[384288610,1757315446478,-168.212705,0.0001377,2]
[384288612,1757315446487,-288.39596,0.0001377,2]
[384288614,1757315446497,-168.104384,0.0001377,2]
[384288616,1757315446506,-151.0,0.0001377,2]
[384288617,1757315446516,-288.39596,0.0001377,2]
[384288619,1757315446525,-288.39596,0.0001377,2]
[384288621,1757315446534,-288.39596,0.0001377,2]
[384288623,1757315446544,-151.0,0.0001377,2]
[384288625,1757315446553,-283.394942,0.0001377,2]
[384288627,1757315446563,-283.394942,0.0001377,2]
[384288629,1757315446572,-283.394942,0.0001377,2]
[384288631,1757315446581,-283.394942,0.0001377,2]
[384288632,1757315446591,-158.635306,0.0001377,2]
[384288634,1757315446601,-151.0,0.0001377,2]
[384288636,1757315446611,-151.0,0.0001377,2]
[384288638,1757315446620,-151.0,0.0001377,2]
[384288640,1757315446631,-198.465905,0.0001377,2]
[384288642,1757315446641,-198.465905,0.0001377,2]
[384288644,1757315446651,-198.465905,0.0001377,2]
[384288646,1757315446660,-198.465905,0.0001377,2]
[384288648,1757315446670,-151.0,0.0001377,2]
[384288650,1757315446679,-155.97932,0.0001377,2]
[384288652,1757315446689,-151.0,0.0001377,2]
[384288654,1757315446698,-151.0,0.0001377,2]
[384288656,1757315446707,-285.160303,0.0001377,2]
[384288657,1757315446716,-151.0,0.0001377,2]
[384288659,1757315446726,-151.0,0.0001377,2]
[384288661,1757315446735,-151.0,0.0001377,2]
[384288663,1757315446744,-582.920251,0.0001377,2]
[384288665,1757315446753,-582.920251,0.0001377,2]
[384288667,1757315446763,-582.920251,0.0001377,2]
[384288669,1757315446772,-582.920251,0.0001377,2]
[384288671,1757315446781,-1346.9465499,0.00013833,2]
[384288673,1757315446790,-261.07168433,0.00013865,2]
[384288675,1757315446806,-238.92831567,0.00013865,2]
[384288677,1757315446815,-500.0,0.00013865,2]
[384288679,1757315446824,-480.0,0.00013866,2]
[384288681,1757315446833,-480.0,0.00013866,2]
[384288683,1757315446843,-480.0,0.00013866,2]
[384288685,1757315446852,-4.70940932,0.00013866,2]
[384289328,1757315532610,-300.0,0.00013667,2]
[384289329,1757315592661,-300.0,0.00013667,2]
[384289330,1757315647730,-300.0,0.00013667,2]
[384289331,1757315667743,-663.75757479,0.00013667,2]
[384289332,1757315707791,-300.0,0.00013667,2]
[384289333,1757315767866,-300.0,0.00013667,2]
[384289334,1757315827808,-300.0,0.00013667,2]
[384289336,1757315857933,-580.78787795,0.00013666,2]
[384289337,1757315857990,-4136.46596518,0.00013668,2]
[384289339,1757316233444,508.18939318,0.00013665,2]
[384289347,1757316250369,178.61,0.00012329,2]
[384289348,1757316261014,178.61,0.00012329,2]
[384289349,1757316264199,3670.42295628,0.00013531,2]
[384289350,1757316271444,327.0,0.00012329,2]
[384289351,1757316272408,5137.17765054,0.00013531,2]
[384289352,1757316272437,320.63839971,0.00013531,2]
[384289353,1757316280607,300.0,0.00013531,2]
[384289354,1757316282267,418.7,0.00012329,2]
[384289355,1757316289889,300.0,0.00013531,2]
[384289356,1757316292661,470.76,0.00012329,2]
[384289357,1757316298611,5863.54403482,0.00013531,2]
[384289358,1757316303035,493.83,0.00012329,2]
[384289360,1757316303979,-4136.46596518,0.00013668,2]
[384289361,1757316304144,-1727.07806964,0.00013668,2]
[384289362,1757316305900,612.61090954,0.00013665,2]
[384289363,1757316306772,2540.91851481,0.00013531,2]
[384289364,1757316313649,496.13,0.00012329,2]
[384289366,1757316314947,2000.0,0.00013531,2]
[384289367,1757316323027,2000.0,0.00013531,2]
[384289369,1757316324112,694.83,0.00012329,2]
[384289371,1757316331728,342.62216088,0.00013531,2]
[384289372,1757316334464,579.03,0.00012329,2]
[384289373,1757316339849,2000.0,0.00013531,2]
[384289374,1757316344833,482.52,0.00012329,2]
[384289375,1757316348206,1404.87783912,0.00013531,2]
[384289376,1757316348229,595.12216088,0.00013531,2]
[384289377,1757316355205,402.1,0.00012329,2]
[384289379,1757316364975,2000.0,0.00013531,2]
[384289380,1757316365584,335.09,0.00012329,2]
[384289383,1757316373584,2000.0,0.00013531,2]
[384289384,1757316375986,279.24,0.00012329,2]
[384289386,1757316386620,232.7,0.00012329,2]
[384289387,1757316389732,2000.0,0.00013531,2]
[384289388,1757316397557,193.91,0.00012329,2]
[384289389,1757316398449,1961.84783912,0.00013531,2]
[384289390,1757316398482,38.15216088,0.00013531,2]
[384289392,1757316408088,161.6,0.00012329,2]
[384289393,1757316415256,2000.0,0.00013531,2]
[384289394,1757316418330,808.0,0.00012329,2]
[384289395,1757316423586,444.66571905,0.00013664,2]
[384289396,1757316424544,919.3648232,0.00013531,2]
[384289398,1757316439971,2000.0,0.00013531,2]
[384289400,1757316451115,-2000.0,0.00013668,2]
[384289401,1757316451137,-111.79829515,0.00013699,2]
[384289403,1757316461202,3628.22729687,0.00013665,2]
[384289404,1757316461231,10000.01,0.00013665,2]
[384289405,1757316461261,10000.01,0.00013665,2]
[384289406,1757316461290,6371.78270313,0.00013665,2]
[384289407,1757316465420,377.78936585,0.00013562,2]
[384289409,1757316489036,377.78936585,0.00013562,2]
[384289412,1757316513390,377.78936585,0.00013562,2]
[384289413,1757316515251,2494.85919932,0.00013,2]
[384289414,1757316515277,10000.01,0.00013,2]
[384289415,1757316515302,10000.01,0.00013,2]
[384289416,1757316515325,10000.01,0.00013,2]
[384289417,1757316515348,10000.01,0.00013,2]
[384289418,1757316515373,10000.01,0.00013,2]
[384289419,1757316515397,6183.42680298,0.00013,2]
[384289424,1757316523841,3816.58319702,0.000135,2]
[384289425,1757316523867,10000.01,0.000135,2]
[384289426,1757316523892,10000.01,0.000135,2]
[384289427,1757316523917,10000.01,0.000135,2]
[384289429,1757316541004,343.94,0.00012329,2]
[384289430,1757316551549,393.51,0.00012329,2]
[384289431,1757316557301,666.0,0.00012742,2]
[384289432,1757316561949,327.92,0.00012329,2]
[384289433,1757316572207,330.93,0.00012329,2]
[384289434,1757316582842,275.78,0.00012329,2]
[384289435,1757316593225,277.09,0.00012329,2]
[384289437,1757316603633,322.47,0.00012329,2]
[384289438,1757316614029,268.73,0.00012329,2]
[384289439,1757316624548,257.32,0.00012329,2]
[384289491,1757316632465,-921.72358051,0.00013365,2]
[384289493,1757316632475,-343.12009165,0.000135,2]
[384289503,1757316632569,-578.60348886,0.000135,2]
[384289505,1757316632579,-389.08250416,0.00013663,2]
[384289506,1757316632588,-377.78936585,0.00013699,2]
[384289508,1757316632599,-1072.86073919,0.00013699,2]
[384289510,1757316632609,-300.0,0.00013762,2]
[384289511,1757316632619,-480.0,0.00013762,2]
[384289512,1757316632629,-1015.61,0.00013763,2]
[384289514,1757316632639,-1137.4,0.00013763,2]
[384289515,1757316632649,-480.0,0.00013763,2]
[384289517,1757316632659,-480.0,0.00013763,2]
[384289518,1757316632668,-551.35,0.00013763,2]
[384289519,1757316632677,-480.0,0.00013763,2]
[384289520,1757316632686,-480.0,0.00013763,2]
[384289521,1757316632695,-480.0,0.00013763,2]
[384289522,1757316632704,-480.0,0.00013763,2]
[384289523,1757316632713,-480.0,0.00013763,2]
[384289524,1757316632722,-557.9,0.00013763,2]
[384289526,1757316632731,-500.0,0.00013763,2]
[384289527,1757316632741,-480.0,0.00013763,2]
[384289528,1757316632750,-510.35495562,0.00013763,2]
[384289529,1757316632759,-480.0,0.00013763,2]
[384289530,1757316632768,-480.0,0.00013763,2]
[384289531,1757316632777,-480.0,0.00013763,2]
[384289532,1757316632786,-481.78186912,0.00013763,2]
[384289533,1757316632796,-642.34,0.00013763,2]
[384289534,1757316632805,-548.22,0.00013763,2]
[384289535,1757316632814,-480.0,0.00013763,2]
[384289536,1757316632824,-480.0,0.00013763,2]
[384289537,1757316632835,-1146.42,0.00013763,2]
[384289538,1757316632845,-480.0,0.00013763,2]
[384289539,1757316632855,-480.0,0.00013763,2]
[384289540,1757316632865,-480.0,0.00013763,2]
[384289541,1757316632875,-480.0,0.00013763,2]
[384289542,1757316632884,-712.74,0.00013763,2]
[384289543,1757316632893,-480.0,0.00013763,2]
[384289544,1757316632903,-4081.99,0.00013763,2]
[384289545,1757316632913,-213.83689512,0.00013763,2]
[384289546,1757316632922,-480.0,0.00013763,2]
[384289547,1757316632932,-480.0,0.00013763,2]
[384289548,1757316632941,-480.0,0.00013763,2]
[384289549,1757316632951,-480.0,0.00013763,2]
[384289550,1757316632963,-480.0,0.00013763,2]
[384289551,1757316632974,-480.0,0.00013763,2]
[384289552,1757316632986,-271.32331499,0.00013763,2]
[384289563,1757316635006,251.88,0.00012329,2]
[384289571,1757316638377,-480.0,0.00013762,2]
[384289572,1757316638387,-29.73970596,0.00013763,2]
[384289573,1757316638399,-346.31697905,0.00013763,2]
[384289574,1757316638409,-659.89131511,0.00013763,2]
[384289575,1757316638477,-401.30868489,0.00013763,2]
[384289576,1757316638487,-480.0,0.00013763,2]
[384289577,1757316638498,-1401.26,0.00013763,2]
[384289578,1757316638507,-480.0,0.00013763,2]
[384289579,1757316638518,-1072.86073919,0.00013763,2]
[384289580,1757316638528,-973.29,0.00013763,2]
[384289581,1757316638538,-500.0,0.00013763,2]
[384289582,1757316638547,-500.0,0.00013763,2]
[384289583,1757316638559,-500.0,0.00013763,2]
[384289584,1757316638569,-500.0,0.00013763,2]
[384289585,1757316638579,-500.0,0.00013763,2]
[384289586,1757316638590,-500.0,0.00013763,2]
[384289587,1757316638600,-457.70800933,0.00013763,2]
[384289588,1757316638610,-500.0,0.00013763,2]
[384289589,1757316638621,-211.73710472,0.00013763,2]
[384289590,1757316638632,-500.0,0.00013763,2]
[384289591,1757316638641,-502.18046612,0.00013763,2]
[384289592,1757316638653,-500.0,0.00013763,2]
[384289593,1757316638665,-500.0,0.00013763,2]
[384289594,1757316638674,-275.17523818,0.00013763,2]
[384289595,1757316638686,-231.34702048,0.00013763,2]
[384289596,1757316638696,-500.0,0.00013763,2]
[384289597,1757316638707,-500.0,0.00013763,2]
[384289598,1757316638718,-500.0,0.00013763,2]
[384289599,1757316638728,-500.0,0.00013763,2]
[384289600,1757316638738,-500.0,0.00013763,2]
[384289601,1757316638748,-500.0,0.00013763,2]
[384289602,1757316638759,-500.0,0.00013763,2]
[384289603,1757316638768,-500.0,0.00013763,2]
[384289604,1757316638778,-500.0,0.00013763,2]
[384289605,1757316638787,-500.0,0.00013763,2]
[384289606,1757316638797,-500.0,0.00013763,2]